Cogmind - Beta 16 @@@ ROGUE MODE // 2026.02.07 @ 22:21:19 Player: Lyra Result: Self-destructed Performance ------------- Evolutions (1) 500 Regions Visited (3) 600 Robots Destroyed (23) 115 Value Destroyed (482) 482 Prototype IDs (1) 20 Alien Tech Used (0) 0 Bonus (0) 0 TOTAL SCORE: 1717 Bonus ------- None Cogmind --------- Core Integrity 284/400 Matter 294/300 Energy 85/100 System Corruption 0% Temperature Cool (9) Movement Core (200) Ox3 Location -9/Materials Parts ------- > --- POWER (2) -------- (None) > --- PROPULSION (2) --- (None) > --- UTILITY (2) ------ Small Storage Unit Small Storage Unit > --- WEAPON (3) ------- (None) > --- INVENTORY (8) ---- Wheel Wheel Cesium-ion Thruster Light Assault Rifle Autogun Datajack Peak State ------------ > --- POWER ------------ Ion Engine Light Ion Engine > --- PROPULSION ------- Light Treads Light Treads > --- UTILITY ---------- Small Storage Unit Small Storage Unit > --- WEAPON ----------- Heavy Particle Gun Assault Rifle Rocket Launcher > --- INVENTORY -------- Wheel Wheel Cesium-ion Thruster Light Assault Rifle Light Assault Rifle Autogun Datajack [Rating: 14] Favorites ----------- Power Ion Engine Engine Ion Engine Propulsion Light Treads Treads Light Treads Utility Small Storage Unit Storage Small Storage Unit Weapon Light Assault Rifle Energy Gun EM Pulse Gun Ballistic Gun Light Assault Rifle Launcher Rocket Launcher Build | -11 -10 -10 -9 ------- Run | Yrd Mat Min Mat Slots Evolved 2 | . . . 2 Power 1 | . . . 1 Propulsion . | . . . . Utility . | . . . . Weapon 1 | . . . 1 Parts Attached 16 | 6 1 2 7 Power 3 | 1 1 . 1 Engine 3 | 1 1 . 1 Core . | . . . . Reactor . | . . . . Propulsion 4 | 2 . . 2 Treads 4 | 2 . . 2 Leg . | . . . . Wheel . | . . . . Hover . | . . . . Flight . | . . . . Utility 2 | 1 . . 1 Device . | . . . . Storage 2 | 1 . . 1 Processor . | . . . . Hackware . | . . . . Protection . | . . . . Artifact . | . . . . Weapon 7 | 2 . 2 3 Energy Gun 3 | 1 . . 2 Energy Cannon . | . . . . Ballistic Gun 3 | 1 . 1 1 Ballistic Cannon . | . . . . Launcher 1 | . . 1 . Special Weapon . | . . . . Impact Weapon . | . . . . Slashing Weapon . | . . . . Piercing Weapon . | . . . . Special Melee Weapon . | . . . . Unidentified Prototypes 1 | . . . 1 Parts Lost 11 | . 1 1 9 Power 3 | . 1 . 2 Propulsion 4 | . . . 4 Utility . | . . . . Weapon 4 | . . 1 3 Highest Loss Streak 7 | . 1 1 7 To Critical Strikes . | . . . . Average Backups 5 | 1 4 7 7 Power . | . . . . Propulsion 2 | . 2 2 3 Utility . | . . 1 . Weapon 2 | . 1 3 2 Tool/Special . | . . . . Unused Backups 8 | . . 1 7 Power . | . . . . Propulsion 4 | . . 1 3 Utility . | . . . . Weapon 3 | . . . 3 Tool/Special 1 | . . . 1 Average Slot Usage (%) 82 | . 85 84 78 Engine 13 | . 14 14 12 Treads 24 | . 28 28 18 Storage 15 | . 14 14 19 Energy Gun 9 | . 14 . 7 Ballistic Gun 15 | . 14 22 14 Launcher 3 | . . 3 6 Peak Build Rating 14 | 6 6 7 14 Average Rating 7 | 4 6 6 10 On Entrance 4 | . 6 6 7 Avg Prop Armor Cover (%) . | . . . . Naked Turns . | . . . . Heaviest Build 27 | 11 13 16 27 Greatest Support 40 | 40 40 40 40 Greatest Overweight (x) 3 | . . . 3 Average Overweight (x) . | . . . . Largest Inventory Capacity 8 | 8 8 8 8 Average Capacity 7 | 7 8 8 8 Most Carried 8 | 5 8 8 8 Average Carried 5 | 1 4 7 7 Final Capacity 8 | 8 8 8 8 Final Carried 8 | 2 8 8 6 Class Distribution -------------------- 76% | Mutant 23% | Gunner Dominant Class ---------------- Mutant | -10/Materials Mutant | -10/Mines Gunner | -9/Materials Resources | -11 -10 -10 -9 ----------- Run | Yrd Mat Min Mat Matter Collected 545 | 114 166 25 240 Remotely . | . . . . Salvage Created 509 | . 163 54 292 Parts 44 | . 9 11 24 Haulers Intercepted . | . . . . Recyclers Shooed . | . . . . Parts Field Recycled . | . . . . Retrieved Matter . | . . . . Parts Self-Destructed . | . . . . Prevented . | . . . . Parts Restored . | . . . . Kills | -11 -10 -10 -9 ------- Run | Yrd Mat Min Mat Combat Hostiles Destroyed 14 | . 2 6 6 Guns 8 | . 2 3 3 AOE 6 | . . 3 3 Classes Destroyed 7 | . 3 1 3 Builder 5 | . . . 5 Mechanic 1 | . 1 . . Watcher 3 | . 2 . 1 Swarmer 6 | . . 6 . Grunt 6 | . 2 . 4 Duelist 1 | . . . 1 Sentry 1 | . . . 1 Best Kill Streak 7 | . 3 3 7 Combat Bots Only 3 | . 2 3 2 Max Kills in Single Turn 4 | . 1 3 4 Gunslinging 1 | . . 1 . Exploded 3 | . . 3 2 Melee . | . . . . Uniques/NPCs Destroyed . | . . . . Combat | -11 -10 -10 -9 -------- Run | Yrd Mat Min Mat Hostile Shots Fired 129 | . 23 38 68 Missed 21 | . 5 8 8 Hits 108 | . 18 30 60 Melee 8 | . . . 8 Projectile 100 | . 18 30 52 Critical Strikes 2 | . . 1 1 Part Disruptions 1 | . 1 . . Damage Taken 1353 | . 252 243 858 Core 225 | . 74 35 116 Absorbed by Shields . | . . . . Core Remaining (%) 78 | 100 . 56 . Volleys Fired 52 | . 15 14 23 Largest 3 | . 2 2 3 Hottest 108 | . 60 60 108 Shots Fired 114 | . 31 21 62 Gun 106 | . 31 19 56 Cannon . | . . . . Launcher 8 | . . 2 6 Special . | . . . . Kinetic 68 | . 16 16 36 Thermal 20 | . . . 20 Explosive 8 | . . 2 6 Electromagnetic 18 | . 15 3 . Robot Hit Streak 12 | . 12 5 8 Robot Miss Streak 5 | . 5 2 3 Penetration Max . | . . . . Secondary Targets 5 | . 2 2 1 Max Gunslinging Chain 1 | . 1 1 1 Shots Hit Robots 61 | . 17 13 31 Core Hits 38 | . 7 9 22 Critical Kills . | . . . . Critical Parts Destroyed . | . . . . Critical Strikes 1 | . 1 . . Corrupt 1 | . 1 . . Melee Attacks . | . . . . Impact . | . . . . Slashing . | . . . . Piercing . | . . . . Sneak Attacks . | . . . . Combat Hostiles . | . . . . Follow-up Attacks . | . . . . Damage Inflicted 1384 | . 245 181 958 Guns 769 | . 218 107 444 Cannons . | . . . . Explosions 615 | . 27 74 514 Melee . | . . . . Ramming . | . . . . Kinetic 384 | . 53 87 244 Thermal 227 | . 27 . 200 Explosive 588 | . . 74 514 Electromagnetic 185 | . 165 20 . Impact . | . . . . Slashing . | . . . . Piercing . | . . . . Highest Corruption 2 | . 2 2 . Average Corruption 2 | . 2 2 . Corruption Purged . | . . . . Corruption Blocked . | . . . . Effects 8 | . 7 1 . Message Errors 3 | . 2 1 . Heat Flow Errors 1 | . 1 . . Energy Discharges 2 | . 2 . . Data Loss (minor) 1 | . 1 . . Misfires 1 | . 1 . . Overload Shots . | . . . . Overflow Damage 17 | . 4 . 13 Projectiles . | . . . . Explosions 17 | . 4 . 13 Melee . | . . . . Knockbacks . | . . . . Impact . | . . . . Kinetic . | . . . . Secondary . | . . . . Self-Inflicted Damage 55 | . 55 . . Shots 2 | . 2 . . Rammed . | . . . . Targets Rammed . | . . . . Kicked . | . . . . Crushed . | . . . . Highest Temperature 248 | . 114 20 248 Average Temperature 72 | . 42 15 95 Received Heat Transfer 309 | . 108 . 201 Effects 1 | . . . 1 Energy Bleed 1 | . . . 1 Siege Activations . | . . . . Martial Activations . | . . . . Shielding Activations . | . . . . Robots Disrupted . | . . . . Combat Hostiles . | . . . . Robots Corrupted . | . . . . Combat Hostiles . | . . . . Parts Fried . | . . . . Impact Corruptions . | . . . . Robots Melted . | . . . . Combat Hostiles . | . . . . Parts Melted 1 | . . . 1 Heat Transferred 457 | . 50 . 407 Parts Sabotaged . | . . . . Parts Stolen . | . . . . Parts Stripped . | . . . . Power Chain Reactions 1 | . 1 . . Alert | -11 -10 -10 -9 ------- Run | Yrd Mat Min Mat Maximum Alert Level . | . . . . Low Security (%) 100 | 100 100 100 100 Level 1 . | . . . . Level 2 . | . . . . Level 3 . | . . . . Level 4 . | . . . . Level 5 . | . . . . High Security . | . . . . Max Security . | . . . . Peak Influence 166 | . 65 71 166 Initial 27 | . . . 27 Average 32 | . 6 12 85 Influence Increases 528 | . 87 155 286 Destroy 0b10 Robot/C 280 | . 40 120 120 Destroy 0b10 Robot/NC 45 | . 15 . 30 Destroy Leader 56 | . 14 20 22 Disable Machine 60 | . 15 . 45 Destroy Structure 87 | . 3 15 69 Influence Decreases 528 | . 87 84 357 Entered New Map 44 | . . . 44 Time Decay 378 | . 77 74 227 Lost Part 106 | . 10 10 86 Squads Dispatched 1 | . 1 . . Investigation . | . . . . Extermination . | . . . . Reinforcement 1 | . 1 . . Assault . | . . . . Garrison . | . . . . Intercept . | . . . . Searches Triggered . | . . . . Construction Impeded . | . . . . Haulers Reinforced . | . . . . Active Scanning Responses . | . . . . Cargo Convoy Interrupts . | . . . . Stealth | -11 -10 -10 -9 --------- Run | Yrd Mat Min Mat Distress Signals 3 | . 1 . 2 Communications Jammed . | . . . . Distress Signals . | . . . . Times Spotted 30 | . 7 6 17 Peak Tracking Total 6 | . 4 3 6 Tactical Retreats . | . . . . Traps | -11 -10 -10 -9 ------- Run | Yrd Mat Min Mat Traps Triggered 1 | . 1 . . Indirectly . | . . . . Trap Hack Attempts . | . . . . Triggered . | . . . . Disarmed . | . . . . Reprogrammed . | . . . . Reused . | . . . . Traps Extracted . | . . . . Installed . | . . . . Triggered . | . . . . Machines | -11 -10 -10 -9 ---------- Run | Yrd Mat Min Mat Machines Disabled 4 | . 1 . 3 Max in Single Turn 2 | . 1 . 2 Machines Repaired . | . . . . Machines Dismantled . | . . . . Machines Sabotaged . | . . . . Overloaded Fab Kills . | . . . . Hacking | -11 -10 -10 -9 --------- Run | Yrd Mat Min Mat Machines Accessed 2 | . 2 . . Terminals 1 | . 1 . . Fabricators . | . . . . Repair Stations . | . . . . Recycling Units 1 | . 1 . . Scanalyzers . | . . . . Garrison Access . | . . . . Total Hacks 3 | . 3 . . Successful 3 | . 3 . . Failed . | . . . . Catastrophic . | . . . . Database Lockouts . | . . . . Manual . | . . . . Terminals 1 | . 1 . . Fabricators . | . . . . Repair Stations . | . . . . Recycling Units 2 | . 2 . . Scanalyzers . | . . . . Garrison Access . | . . . . Terminal Hacks 1 | . 1 . . Record 1 | . 1 . . Fabricator Hacks . | . . . . Repair Station Hacks . | . . . . Recycling Unit Hacks 2 | . 2 . . Process 1 | . 1 . . Report Inventory 1 | . 1 . . Scanalyzer . | . . . . Garrison Access Hacks . | . . . . Unauthorized Hacks . | . . . . Terminals . | . . . . Fabricators . | . . . . Repair Stations . | . . . . Recycling Units . | . . . . Scanalyzers . | . . . . Garrison Access . | . . . . Data Cores Recovered . | . . . . Used . | . . . . Hacking Detections . | . . . . Full Trace Events . | . . . . Feedback Events . | . . . . Feedback Blocked . | . . . . Robot Schematics Acquired . | . . . . Robots Built . | . . . . Authchips . | . . . . Time . | . . . . Total Robot Build Rating . | . . . . Part Schematics Acquired . | . . . . Parts Built . | . . . . Authchips . | . . . . Time . | . . . . Total Part Build Rating . | . . . . Part Studies Acquired . | . . . . Parts Repaired . | . . . . Time . | . . . . Parts Recycled . | . . . . Recycled Matter 41 | . 41 . . Retrieved Matter . | . . . . Retrieved Components . | . . . . Parts Scanalyzed . | . . . . Part Schematics Acquired . | . . . . Parts Damaged . | . . . . Bothacking | -11 -10 -10 -9 ------------ Run | Yrd Mat Min Mat Used RIF Installer . | . . . . Robots Hacked . | . . . . Non-combat . | . . . . Combat . | . . . . Robot Hacks Applied . | . . . . Relay Couplers Released . | . . . . Fabnet Peak Effective % . | . . . . Robots Rewired . | . . . . Allies Hacked . | . . . . Hacks Repelled . | . . . . Allies | -11 -10 -10 -9 -------- Run | Yrd Mat Min Mat Total Allies . | . . . . Largest Group . | . . . . Highest-Rated Group . | . . . . Highest-Rated Ally . | . . . . Total Orders . | . . . . Ally Attacks . | . . . . Total Damage . | . . . . Kills . | . . . . Allies Corrupted . | . . . . Allies Melted . | . . . . Intel | -11 -10 -10 -9 ------- Run | Yrd Mat Min Mat Active Infowar (turns) . | . . . . Robot Analysis Total . | . . . . Derelict Logs Recovered 1 | . . 1 . Drone Launches . | . . . . Drone Recoveries . | . . . . Exploration | -11 -10 -10 -9 ------------- Run | Yrd Mat Min Mat Turns Passed 1519 | 92 655 290 482 Spaces Moved 795 | 60 366 157 212 Core 21 | 16 . . 5 Treads 774 | 44 366 157 207 Legs . | . . . . Wheels . | . . . . Hover . | . . . . Flight . | . . . . Fastest Speed 50 | 50 160 160 160 Average Speed 162 | 130 160 160 179 Slowest Speed 240 | 160 160 160 240 Overloaded Moves . | . . . . Propulsion Burnouts . | . . . . Robots Hopped . | . . . . Potential Cave-ins . | . . . . Cave-ins Triggered . | . . . . Exploration Rate (%) 26 | 4 52 34 17 Regions Visited 3 Branch Regions 1 Pre-discovered Areas 1 | . . 1 . Known Exits Taken . | . . . . Unknown Exits Taken 3 | 1 1 1 . Scrap Searched 1 | . . 1 . Spaces Dug 4 | . . 4 . Terrain Destroyed 85 | . 3 16 66 Melee . | . . . . Projectile . | . . . . AOE 85 | . 3 16 66 Terrain Rammed . | . . . . Walls Destroyed . | . . . . Machines Disabled . | . . . . Actions | -11 -10 -10 -9 --------- Run | Yrd Mat Min Mat Total 927 | 74 409 177 267 Wait 40 | 1 21 2 16 Move 792 | 59 365 156 212 Hop . | . . . . Pick Up 22 | 8 7 2 5 Fast Attach 2 | . . . 2 Attach 13 | 6 1 1 5 Detach . | . . . . Swap 2 | . . 1 1 Drop 4 | . . 1 3 Fire 52 | . 15 14 23 Melee . | . . . . Ram . | . . . . Kick . | . . . . Crush . | . . . . Escape Stasis . | . . . . Rewire . | . . . . Trap . | . . . . Miscellaneous . | . . . . Route ------- -11/Scrapyard -10/Materials -10/Mines -9/Materials History --------- Turn | Location | Event 11 | -11/Scrapyard | Discovered new exit (range 16) 93 | -11/Scrapyard | Entered Materials 301 | -10/Materials | Build established: Mutant 530 | -10/Materials | Discovered new exit (range 15) 748 | -10/Materials | Entered Mines 885 | -10/Mines | Discovered new exit (range 10) 925 | -10/Mines | Learned location of Storage (-8) 937 | -10/Mines | Received a Rocket Launcher from a helpful Derelict 1038 | -10/Mines | Entered Materials 1038 | -9/Materials | Evolved 2 slots: Power x1, Weapon x1 1422 | -9/Materials | Build established: Gunner 1520 | -9/Materials | Self-destructed Last Messages --------------- G-34 Mercenary destroyed. Overheating: Energy bleed (-26). Acquired 58 matter. Acquired 26 matter. R-06 Scavenger collects Sml. Laser. R-06 Scavenger collects Heat Sink. R-06 Scavenger collects Aluminum Leg. K-01 Serf collects debris. G-34 Mercenary destroyed. K-01 Serf collects debris. Acquired 24 matter. K-01 Serf collects debris. Hvy. Particle Gun destroyed. R-06 Scavenger destroyed. Lgt. Treads destroyed. Lgt. Assault Rifle destroyed. Ion Engine destroyed. Lgt. Treads destroyed. Assault Rifle destroyed. Lgt. Treads destroyed. Map ----- +----------------------------------------------------+ | ?????????????????????????????????????????????????? | | ?????????????????????????????????????????????????? | | ?????????????????????????????????????????????????? | | ?????????????????????????????????????????????????? | | ?????????????????????????????????????????????????? | | ?????????????????????????????????????????????????? | | ?????????????????????????????????????????????????? | | ?????????????????????????????????????????????????? | | ?????????????????????????????????????????????????? | | ?????????????????????????????????????????????????? | | ??????????????????????????? ????????????????????? | | ??????????????????????????? ????????????????????? | | ??????????????????????????? "???????????????????? | | ??????????????????????????? "???????????????????? | | ??????????????????????????# """?????????????????? | | ??????????????????????????# ""??????????????????? | | ??????????????????????????+ ???????????????? | | ??????????????????????????# ???????????????? | | ??????????????????????????# #???????????????? | | ??????????????????????????# #???????????????? | | ??????????????????????????# #???????????????# | | ???????????????????######## #???????????????# | | ???????????????????# # #???????????????# | | ???????????????????# """ # #???????????????# | | ???????????????????# """ # #???????????????# | | ???????????????????# """@s +??????????????? | | ???????????????????# # g #???????????????# | | ???????????????????# # #???????????????# | | ???????????????????######## ################# | | ??????????????????????????# | | ??????????????????????????# | | ??????????????????????????# | | ??????????????????????????+ ################## | | ??????????????????????????# #??############# # | | ??????????????????????????# #??# """" # | | ??????????????????????????# #??# ""S"" "" # | | ?????????????????????????? #??# "" "" " # ! | | ????????????????????????? #??# " % #=% | | ???????????????????????? #??# %"=[ | | ???????????????????????########??# # | | ?????????????????????????????????############### | | ???????????????????????????????????# # | | ???????????????????????????????????# """ """ # | | ??????????????????????????????????????"" """ # | | ??????????????????????????????????????"" """ # | | ??????????????????????????????????????"" """ + | | ??????????????????????????????????????"" """ # | | ????????????????????????????????????? # | | ?????????????????????????????????????########### | | ???????????????????????????????????????????##### | +----------------------------------------------------+ Best States ------------- Heat Dissipation 28 Energy Generation 15 Energy Capacity 275 Matter Stores 300 Matter Capacity 300 Sight Range 16 Terrain Scan Density 10 Evasion (%) 50 Recoil Reduction 2 Item Schematics ----------------- None Robot Schematics ------------------ None Fabricated ------------ Nothing Repaired ---------- Nothing Studied --------- None Alien Tech Used ----------------- None Achievements -------------- Resistances Are Futile Challenges ------------ None Game ------ Seed AssemblyPersonalWartreads Manual? 0 Play Time 00:15:23 Cumulative 2.0 hours Start 2026.02.07 @ 22:07:21 End 2026.02.07 @ 22:21:19 Sessions 1 Manual Loads 0 Difficulty Rogue Special Mode None Game No. 8 Rogue 8 Adventurer 0 Explorer 0 Win Type - Total 0 Types 0/0/0/0/0/0/0/0/0/0 Lore% 0 Gallery% 5 Achievement% 3 Wizard Run 0 Options --------- Layout 1 ASCII 0 Keyboard 0 Movement Numpad Keybinds 0 Fullscreen 2 Font 48/Terminus Map View 50x35 Zoom Use 0% Tactical HUD 0 Map Filters NONE Filters NONE Steam 1 RUN: 906fb387-4843-4ca5-a0d7-c3c0337560bb